[Event "Titled Tuesday Blitz March 14 Early 2023"]
[White "Jimenez, Joaquin"]
[Black "Clawitter, Craig"]
[WhiteFideId "109860"]
[BlackFideId "2023105"]
[WhiteElo "2163"]
[BlackElo "2236"]
[Result "0-1"]
[Round "08"]
[TimeControl "180+2"]
[Date "2023.03.14"]
[WhiteClock "0:01:41"]
[BlackClock "0:00:04"]

1. e4 {[%clk 0:03:00]}  e6 {[%clk 0:02:32]} 2. d4 {[%clk 0:02:58]}  d5 {[%clk 0:02:33]} 3. Nd2 {[%clk 0:02:59]}  Be7 {[%clk 0:02:33]} 4. Ngf3 {[%clk 0:02:57]}  Nf6 {[%clk 0:02:32]} 5. Bd3 {[%clk 0:02:56]}  c5 {[%clk 0:02:31]} 6. exd5 {[%clk 0:02:55]}  Qxd5 {[%clk 0:02:25]} 7. O-O {[%clk 0:02:51]}  cxd4 {[%clk 0:02:23]} 8. Nb3 {[%clk 0:02:51]}  Nc6 {[%clk 0:02:23]} 9. Nbxd4 {[%clk 0:02:47]}  Nxd4 {[%clk 0:02:21]} 10. Nxd4 {[%clk 0:02:46]}  Bd7 {[%clk 0:02:12]} 11. c3 {[%clk 0:02:45]}  O-O {[%clk 0:02:11]} 12. Qe2 {[%clk 0:02:45]}  Rac8 {[%clk 0:01:51]} 13. Be3 {[%clk 0:02:42]}  e5 {[%clk 0:01:37]} 14. Nf5 {[%clk 0:02:40]}  Bc5 {[%clk 0:01:17]} 15. Rad1 {[%clk 0:02:35]}  e4 {[%clk 0:01:07]} 16. Bxc5 {[%clk 0:02:25]}  Qxc5 {[%clk 0:00:37]} 17. Bxe4 {[%clk 0:02:22]}  Bxf5 {[%clk 0:00:16]} 18. Bxb7 {[%clk 0:02:21]}  Rcd8 {[%clk 0:00:15]} 19. Bf3 {[%clk 0:02:17]}  Rfe8 {[%clk 0:00:14]} 20. Qa6 {[%clk 0:02:17]}  Qb6 {[%clk 0:00:12]} 21. Qa4 {[%clk 0:02:14]}  Bd3 {[%clk 0:00:11]} 22. Rfe1 {[%clk 0:02:10]}  Rxe1+ {[%clk 0:00:11]} 23. Rxe1 {[%clk 0:02:10]}  Qxb2 {[%clk 0:00:10]} 24. Qxa7 {[%clk 0:02:05]}  Qxc3 {[%clk 0:00:08]} 25. Rd1 {[%clk 0:02:06]}  h6 {[%clk 0:00:05]} 26. Qe7 {[%clk 0:01:58]}  Re8 {[%clk 0:00:05]} 27. Qxe8+ {[%clk 0:01:53]}  Nxe8 {[%clk 0:00:05]} 28. h4 {[%clk 0:01:52]}  Nf6 {[%clk 0:00:04]} 29. g3 {[%clk 0:01:51]}  Qc2 {[%clk 0:00:04]} 30. Re1 {[%clk 0:01:50]}  Kh7 {[%clk 0:00:04]} 31. Kg2 {[%clk 0:01:48]}  Qxa2 {[%clk 0:00:03]} 32. Re3 {[%clk 0:01:48]}  Qc2 {[%clk 0:00:03]} 33. Re7 {[%clk 0:01:47]}  Be4 {[%clk 0:00:03]} 34. Rxf7 {[%clk 0:01:41]}  Bxf3+ {[%clk 0:00:03]} 35. Kxf3 {[%clk 0:01:41]}  Qe4# {[%clk 0:00:04]} 0-1


[Site "https://www.chess.com"]

[Event "Titled Tuesday Blitz March 14 Early 2023"]
[White "Yu, Yangyi"]
[Black "Le, Tuan Minh"]
[WhiteFideId "8603820"]
[BlackFideId "12401153"]
[WhiteElo "2783"]
[BlackElo "2558"]
[Result "0-1"]
[Round "09"]
[TimeControl "180+2"]
[Date "2023.03.14"]
[WhiteClock "0:00:01"]
[BlackClock "0:00:04"]

1. Nf3 {[%clk 0:03:00]}  d5 {[%clk 0:02:56]} 2. g3 {[%clk 0:02:59]}  g6 {[%clk 0:02:55]} 3. Bg2 {[%clk 0:02:58]}  Bg7 {[%clk 0:02:56]} 4. d4 {[%clk 0:02:59]}  Nf6 {[%clk 0:02:56]} 5. c4 {[%clk 0:02:58]}  c6 {[%clk 0:02:54]} 6. Qa4 {[%clk 0:02:57]}  O-O {[%clk 0:02:54]} 7. O-O {[%clk 0:02:57]}  Nbd7 {[%clk 0:02:45]} 8. cxd5 {[%clk 0:02:56]}  Nb6 {[%clk 0:02:45]} 9. Qb3 {[%clk 0:02:56]}  cxd5 {[%clk 0:02:46]} 10. Bf4 {[%clk 0:02:55]}  Ne4 {[%clk 0:02:42]} 11. Rc1 {[%clk 0:02:51]}  Nc4 {[%clk 0:02:23]} 12. Nc3 {[%clk 0:02:46]}  Nxc3 {[%clk 0:02:22]} 13. Qxc3 {[%clk 0:02:41]}  Bg4 {[%clk 0:02:06]} 14. b3 {[%clk 0:02:36]}  Nd6 {[%clk 0:02:06]} 15. e3 {[%clk 0:02:12]}  Rc8 {[%clk 0:01:50]} 16. Qe1 {[%clk 0:01:47]}  Qb6 {[%clk 0:01:39]} 17. Ne5 {[%clk 0:01:44]}  Be6 {[%clk 0:01:39]} 18. Nd3 {[%clk 0:01:42]}  Ne4 {[%clk 0:01:31]} 19. h4 {[%clk 0:01:28]}  Bf5 {[%clk 0:01:26]} 20. Rxc8 {[%clk 0:01:10]}  Rxc8 {[%clk 0:01:25]} 21. Rc1 {[%clk 0:01:10]}  Bf8 {[%clk 0:00:59]} 22. g4 {[%clk 0:00:58]}  Be6 {[%clk 0:00:44]} 23. f3 {[%clk 0:00:57]}  Nf6 {[%clk 0:00:42]} 24. Nc5 {[%clk 0:00:54]}  Rc6 {[%clk 0:00:35]} 25. Nxe6 {[%clk 0:00:47]}  fxe6 {[%clk 0:00:36]} 26. g5 {[%clk 0:00:41]}  Nh5 {[%clk 0:00:33]} 27. Be5 {[%clk 0:00:40]}  Ng7 {[%clk 0:00:22]} 28. e4 {[%clk 0:00:30]}  dxe4 {[%clk 0:00:20]} 29. fxe4 {[%clk 0:00:28]}  Nh5 {[%clk 0:00:20]} 30. Rxc6 {[%clk 0:00:24]}  Qxc6 {[%clk 0:00:20]} 31. d5 {[%clk 0:00:21]}  Qc2 {[%clk 0:00:14]} 32. Bh3 {[%clk 0:00:17]}  Ng7 {[%clk 0:00:09]} 33. Qf2 {[%clk 0:00:08]}  Qb1+ {[%clk 0:00:05]} 34. Qf1 {[%clk 0:00:04]}  Qxe4 {[%clk 0:00:05]} 35. Bxg7 {[%clk 0:00:04]}  Bxg7 {[%clk 0:00:05]} 36. Bxe6+ {[%clk 0:00:04]}  Kh8 {[%clk 0:00:05]} 37. Qf7 {[%clk 0:00:02]}  Bd4+ {[%clk 0:00:06]} 38. Kf1 {[%clk 0:00:02]}  Qd3+ {[%clk 0:00:05]} 39. Kg2 {[%clk 0:00:03]}  Qe2+ {[%clk 0:00:05]} 40. Kh3 {[%clk 0:00:02]}  Qe3+ {[%clk 0:00:06]} 41. Kg4 {[%clk 0:00:02]}  Qg1+ {[%clk 0:00:05]} 42. Kh3 {[%clk 0:00:02]}  Qh1+ {[%clk 0:00:03]} 43. Kg4 {[%clk 0:00:01]}  Qg2+ {[%clk 0:00:03]} 44. Kf4 {[%clk 0:00:01]}  Qf2+ {[%clk 0:00:04]} 0-1


[Site "https://www.chess.com"]

[Event "Titled Tuesday Blitz March 14 Early 2023"]
[White "Erigaisi Arjun"]
[Black "Lobanov, Sergei"]
[WhiteFideId "35009192"]
[BlackFideId "24183750"]
[WhiteElo "2737"]
[BlackElo "2489"]
[Result "0-1"]
[Round "09"]
[TimeControl "180+2"]
[Date "2023.03.14"]
[WhiteClock "0:00:08"]
[BlackClock "0:00:13"]

1. c4 {[%clk 0:03:00]}  e5 {[%clk 0:02:59]} 2. d3 {[%clk 0:03:00]}  Nf6 {[%clk 0:02:58]} 3. Nf3 {[%clk 0:03:00]}  Nc6 {[%clk 0:02:57]} 4. a3 {[%clk 0:03:00]}  d5 {[%clk 0:02:55]} 5. cxd5 {[%clk 0:03:01]}  Nxd5 {[%clk 0:02:56]} 6. e4 {[%clk 0:03:02]}  Nb6 {[%clk 0:02:54]} 7. Be3 {[%clk 0:03:02]}  Be7 {[%clk 0:02:53]} 8. Be2 {[%clk 0:03:03]}  Be6 {[%clk 0:02:53]} 9. O-O {[%clk 0:03:03]}  O-O {[%clk 0:02:51]} 10. Nbd2 {[%clk 0:03:01]}  a5 {[%clk 0:02:33]} 11. Rc1 {[%clk 0:03:00]}  f6 {[%clk 0:02:26]} 12. Qc2 {[%clk 0:02:49]}  a4 {[%clk 0:02:24]} 13. Qc3 {[%clk 0:02:48]}  Qd7 {[%clk 0:02:10]} 14. d4 {[%clk 0:02:47]}  exd4 {[%clk 0:02:10]} 15. Nxd4 {[%clk 0:02:48]}  Nxd4 {[%clk 0:02:09]} 16. Bxd4 {[%clk 0:02:45]}  Bd6 {[%clk 0:02:09]} 17. f4 {[%clk 0:02:34]}  Rad8 {[%clk 0:02:03]} 18. Be3 {[%clk 0:02:24]}  Rfe8 {[%clk 0:02:02]} 19. Rfd1 {[%clk 0:02:05]}  Qf7 {[%clk 0:01:55]} 20. Bf3 {[%clk 0:01:58]}  Rd7 {[%clk 0:01:44]} 21. e5 {[%clk 0:01:24]}  fxe5 {[%clk 0:01:42]} 22. Ne4 {[%clk 0:01:25]}  Be7 {[%clk 0:01:22]} 23. Bxb6 {[%clk 0:01:20]}  Rxd1+ {[%clk 0:01:17]} 24. Rxd1 {[%clk 0:01:21]}  cxb6 {[%clk 0:01:18]} 25. Qxe5 {[%clk 0:01:10]}  Bb3 {[%clk 0:01:16]} 26. Rd7 {[%clk 0:01:10]}  Bc5+ {[%clk 0:00:28]} 27. Nxc5 {[%clk 0:01:10]}  Rxe5 {[%clk 0:00:28]} 28. Rxf7 {[%clk 0:01:10]}  Rxc5 {[%clk 0:00:28]} 29. Rxb7 {[%clk 0:01:06]}  Rc1+ {[%clk 0:00:28]} 30. Kf2 {[%clk 0:01:06]}  Rc2+ {[%clk 0:00:29]} 31. Ke3 {[%clk 0:00:49]}  Rxb2 {[%clk 0:00:30]} 32. Rxb6 {[%clk 0:00:50]}  Ra2 {[%clk 0:00:31]} 33. f5 {[%clk 0:00:44]}  Rxa3 {[%clk 0:00:31]} 34. Kf4 {[%clk 0:00:44]}  Ra1 {[%clk 0:00:30]} 35. Bh5 {[%clk 0:00:21]}  Kf8 {[%clk 0:00:29]} 36. Rb8+ {[%clk 0:00:20]}  Ke7 {[%clk 0:00:29]} 37. Rb7+ {[%clk 0:00:21]}  Kf6 {[%clk 0:00:26]} 38. Rb6+ {[%clk 0:00:17]}  Ke7 {[%clk 0:00:25]} 39. Kg5 {[%clk 0:00:16]}  h6+ {[%clk 0:00:15]} 40. Kf4 {[%clk 0:00:08]}  a3 {[%clk 0:00:10]} 41. Rxb3 {[%clk 0:00:05]}  a2 {[%clk 0:00:11]} 42. Re3+ {[%clk 0:00:04]}  Kd6 {[%clk 0:00:10]} 43. Re6+ {[%clk 0:00:04]}  Kd7 {[%clk 0:00:10]} 44. Bf3 {[%clk 0:00:02]}  Rf1 {[%clk 0:00:08]} 45. Ra6 {[%clk 0:00:02]}  a1=Q {[%clk 0:00:08]} 46. Rxa1 {[%clk 0:00:02]}  Rxa1 {[%clk 0:00:09]} 47. Kg4 {[%clk 0:00:03]}  Ke7 {[%clk 0:00:09]} 48. Kf4 {[%clk 0:00:03]}  Kf6 {[%clk 0:00:09]} 49. g4 {[%clk 0:00:03]}  Ra4+ {[%clk 0:00:10]} 50. Kg3 {[%clk 0:00:04]}  Ke5 {[%clk 0:00:10]} 51. h3 {[%clk 0:00:02]}  Ra3 {[%clk 0:00:11]} 52. Kf2 {[%clk 0:00:02]}  Kf4 {[%clk 0:00:11]} 53. Be2 {[%clk 0:00:03]}  Rxh3 {[%clk 0:00:10]} 54. Bd1 {[%clk 0:00:03]}  Ra3 {[%clk 0:00:10]} 55. Be2 {[%clk 0:00:04]}  Ra2 {[%clk 0:00:10]} 56. Ke1 {[%clk 0:00:05]}  Rxe2+ {[%clk 0:00:11]} 57. Kxe2 {[%clk 0:00:05]}  Kxg4 {[%clk 0:00:12]} 58. f6 {[%clk 0:00:06]}  gxf6 {[%clk 0:00:12]} 59. Kf2 {[%clk 0:00:07]}  f5 {[%clk 0:00:12]} 60. Kg2 {[%clk 0:00:08]}  h5 {[%clk 0:00:13]} 0-1


[Site "https://www.chess.com"]

[Event "Titled Tuesday Blitz March 14 Early 2023"]
[White "So, Wesley"]
[Black "Martinez Alcantara, Jose Eduardo"]
[WhiteFideId "5202213"]
[BlackFideId "3805662"]
[WhiteElo "2739"]
[BlackElo "2712"]
[Result "1-0"]
[Round "09"]
[TimeControl "180+2"]
[Date "2023.03.14"]
[WhiteClock "0:00:13"]
[BlackClock "0:00:02"]

1. Nf3 {[%clk 0:03:00]}  c5 {[%clk 0:02:54]} 2. e3 {[%clk 0:02:55]}  Nf6 {[%clk 0:02:53]} 3. b3 {[%clk 0:02:54]}  e6 {[%clk 0:02:54]} 4. Bb2 {[%clk 0:02:53]}  Be7 {[%clk 0:02:54]} 5. g4 {[%clk 0:02:49]}  O-O {[%clk 0:02:51]} 6. g5 {[%clk 0:02:48]}  Ne8 {[%clk 0:02:45]} 7. h4 {[%clk 0:02:40]}  Nc6 {[%clk 0:02:44]} 8. Rg1 {[%clk 0:02:27]}  d5 {[%clk 0:02:44]} 9. Bb5 {[%clk 0:02:26]}  d4 {[%clk 0:02:34]} 10. Bxc6 {[%clk 0:02:23]}  bxc6 {[%clk 0:02:35]} 11. exd4 {[%clk 0:02:19]}  cxd4 {[%clk 0:02:36]} 12. Nxd4 {[%clk 0:02:10]}  Qd7 {[%clk 0:02:36]} 13. Qe2 {[%clk 0:02:06]}  a5 {[%clk 0:02:19]} 14. Nf3 {[%clk 0:01:57]}  a4 {[%clk 0:02:17]} 15. Ne5 {[%clk 0:01:56]}  Qc7 {[%clk 0:02:09]} 16. Ng4 {[%clk 0:01:54]}  axb3 {[%clk 0:01:46]} 17. axb3 {[%clk 0:01:55]}  Rxa1 {[%clk 0:01:47]} 18. Bxa1 {[%clk 0:01:56]}  Qa5 {[%clk 0:01:36]} 19. Qe5 {[%clk 0:01:46]}  Qa2 {[%clk 0:01:23]} 20. Qb2 {[%clk 0:01:46]}  Qa5 {[%clk 0:01:19]} 21. Qc3 {[%clk 0:01:39]}  Qa2 {[%clk 0:01:17]} 22. Ke2 {[%clk 0:01:26]}  Qa6+ {[%clk 0:01:17]} 23. d3 {[%clk 0:01:26]}  c5 {[%clk 0:01:00]} 24. Nd2 {[%clk 0:01:23]}  Bb7 {[%clk 0:00:51]} 25. Nf6+ {[%clk 0:01:15]}  Bxf6 {[%clk 0:00:47]} 26. gxf6 {[%clk 0:01:16]}  g6 {[%clk 0:00:47]} 27. Qxc5 {[%clk 0:01:12]}  Nd6 {[%clk 0:00:46]} 28. Be5 {[%clk 0:01:04]}  Ne4 {[%clk 0:00:32]} 29. Nxe4 {[%clk 0:01:01]}  Bxe4 {[%clk 0:00:33]} 30. Qe3 {[%clk 0:00:51]}  Rc8 {[%clk 0:00:24]} 31. Qxe4 {[%clk 0:00:48]}  Rxc2+ {[%clk 0:00:25]} 32. Kf3 {[%clk 0:00:48]}  Qa7 {[%clk 0:00:25]} 33. Qe3 {[%clk 0:00:43]}  Qb7+ {[%clk 0:00:26]} 34. Kg3 {[%clk 0:00:42]}  Qd5 {[%clk 0:00:22]} 35. Rg2 {[%clk 0:00:31]}  h5 {[%clk 0:00:20]} 36. f3 {[%clk 0:00:30]}  Rc8 {[%clk 0:00:15]} 37. b4 {[%clk 0:00:29]}  Qb5 {[%clk 0:00:14]} 38. Rb2 {[%clk 0:00:28]}  Kh7 {[%clk 0:00:14]} 39. d4 {[%clk 0:00:24]}  Qf1 {[%clk 0:00:13]} 40. Qf2 {[%clk 0:00:22]}  Qc1 {[%clk 0:00:10]} 41. b5 {[%clk 0:00:21]}  Qa1 {[%clk 0:00:11]} 42. b6 {[%clk 0:00:20]}  Rc1 {[%clk 0:00:11]} 43. b7 {[%clk 0:00:18]}  Rg1+ {[%clk 0:00:12]} 44. Kh2 {[%clk 0:00:18]}  Rh1+ {[%clk 0:00:12]} 45. Kg2 {[%clk 0:00:18]}  Rxh4 {[%clk 0:00:09]} 46. Bh2 {[%clk 0:00:14]}  Qc1 {[%clk 0:00:02]} 47. b8=Q {[%clk 0:00:13]} 1-0


[Site "https://www.chess.com"]

[Event "Titled Tuesday Blitz March 14 Early 2023"]
[White "Lazavik, Denis"]
[Black "Bluebaum, Matthias"]
[WhiteFideId "13515110"]
[BlackFideId "24651516"]
[WhiteElo "2560"]
[BlackElo "2638"]
[Result "1-0"]
[Round "09"]
[TimeControl "180+2"]
[Date "2023.03.14"]
[WhiteClock "0:00:11"]
[BlackClock "0:00:08"]

1. d4 {[%clk 0:03:00]}  d5 {[%clk 0:03:00]} 2. c4 {[%clk 0:03:01]}  e6 {[%clk 0:03:00]} 3. Nf3 {[%clk 0:03:01]}  Nf6 {[%clk 0:03:01]} 4. g3 {[%clk 0:03:02]}  Nc6 {[%clk 0:03:01]} 5. Bg2 {[%clk 0:03:02]}  Bd6 {[%clk 0:03:02]} 6. O-O {[%clk 0:03:02]}  O-O {[%clk 0:03:03]} 7. b3 {[%clk 0:03:00]}  dxc4 {[%clk 0:03:03]} 8. bxc4 {[%clk 0:03:00]}  e5 {[%clk 0:03:04]} 9. c5 {[%clk 0:02:54]}  Be7 {[%clk 0:03:04]} 10. dxe5 {[%clk 0:02:50]}  Qxd1 {[%clk 0:03:02]} 11. Rxd1 {[%clk 0:02:50]}  Ne4 {[%clk 0:03:03]} 12. Be3 {[%clk 0:02:42]}  Bxc5 {[%clk 0:03:03]} 13. Bxc5 {[%clk 0:02:42]}  Nxc5 {[%clk 0:03:04]} 14. Nc3 {[%clk 0:02:42]}  Be6 {[%clk 0:03:01]} 15. Rac1 {[%clk 0:02:33]}  Rad8 {[%clk 0:02:59]} 16. Ng5 {[%clk 0:01:53]}  Nxe5 {[%clk 0:01:33]} 17. Nd5 {[%clk 0:01:35]}  Bxd5 {[%clk 0:01:26]} 18. Bxd5 {[%clk 0:01:35]}  b6 {[%clk 0:01:16]} 19. f4 {[%clk 0:01:33]}  h6 {[%clk 0:01:14]} 20. Ne4 {[%clk 0:01:10]}  Ned7 {[%clk 0:01:13]} 21. Nc3 {[%clk 0:01:06]}  Nf6 {[%clk 0:01:08]} 22. Bc6 {[%clk 0:01:06]}  a6 {[%clk 0:00:51]} 23. e4 {[%clk 0:01:04]}  Rd6 {[%clk 0:00:35]} 24. Rxd6 {[%clk 0:01:00]}  cxd6 {[%clk 0:00:36]} 25. Rd1 {[%clk 0:01:01]}  Rd8 {[%clk 0:00:29]} 26. e5 {[%clk 0:00:59]}  Ne8 {[%clk 0:00:22]} 27. Nd5 {[%clk 0:00:45]}  Kf8 {[%clk 0:00:09]} 28. Nxb6 {[%clk 0:00:44]}  Rb8 {[%clk 0:00:09]} 29. Nc4 {[%clk 0:00:36]}  dxe5 {[%clk 0:00:09]} 30. Nxe5 {[%clk 0:00:37]}  Nf6 {[%clk 0:00:09]} 31. Rc1 {[%clk 0:00:33]}  Ne6 {[%clk 0:00:09]} 32. Ba4 {[%clk 0:00:24]}  Rb2 {[%clk 0:00:05]} 33. Rc2 {[%clk 0:00:18]}  Rxc2 {[%clk 0:00:05]} 34. Bxc2 {[%clk 0:00:19]}  Nc5 {[%clk 0:00:06]} 35. Kf2 {[%clk 0:00:18]}  Ke7 {[%clk 0:00:05]} 36. Ke3 {[%clk 0:00:17]}  Nfd7 {[%clk 0:00:05]} 37. Kd4 {[%clk 0:00:15]}  Ne6+ {[%clk 0:00:06]} 38. Kd5 {[%clk 0:00:15]}  Nxe5 {[%clk 0:00:06]} 39. fxe5 {[%clk 0:00:12]}  Kd7 {[%clk 0:00:05]} 40. Ba4+ {[%clk 0:00:12]}  Kc7 {[%clk 0:00:06]} 41. Bb3 {[%clk 0:00:13]}  Kd7 {[%clk 0:00:06]} 42. Bc4 {[%clk 0:00:11]}  a5 {[%clk 0:00:05]} 43. a3 {[%clk 0:00:12]}  Kc7 {[%clk 0:00:05]} 44. Bd3 {[%clk 0:00:11]}  Nd8 {[%clk 0:00:05]} 45. Kc5 {[%clk 0:00:11]}  Nc6 {[%clk 0:00:05]} 46. Kd5 {[%clk 0:00:11]}  Ne7+ {[%clk 0:00:05]} 47. Ke4 {[%clk 0:00:12]}  Kb6 {[%clk 0:00:05]} 48. Bc4 {[%clk 0:00:12]}  f6 {[%clk 0:00:05]} 49. exf6 {[%clk 0:00:13]}  gxf6 {[%clk 0:00:06]} 50. Kd4 {[%clk 0:00:14]}  Kc6 {[%clk 0:00:05]} 51. Bd3 {[%clk 0:00:14]}  Kd6 {[%clk 0:00:04]} 52. Kc4 {[%clk 0:00:14]}  Kc6 {[%clk 0:00:04]} 53. Be4+ {[%clk 0:00:15]}  Kb6 {[%clk 0:00:05]} 54. h3 {[%clk 0:00:13]}  f5 {[%clk 0:00:03]} 55. Bf3 {[%clk 0:00:12]}  Ng6 {[%clk 0:00:02]} 56. Kd4 {[%clk 0:00:13]}  f4 {[%clk 0:00:03]} 57. g4 {[%clk 0:00:13]}  Nh4 {[%clk 0:00:03]} 58. Be4 {[%clk 0:00:13]}  Kb5 {[%clk 0:00:04]} 59. Bc2 {[%clk 0:00:09]}  f3 {[%clk 0:00:03]} 60. Ke3 {[%clk 0:00:09]}  Kc4 {[%clk 0:00:03]} 61. Kf2 {[%clk 0:00:09]}  Kc3 {[%clk 0:00:04]} 62. Bd1 {[%clk 0:00:09]}  Kd2 {[%clk 0:00:03]} 63. Bxf3 {[%clk 0:00:08]}  Ng6 {[%clk 0:00:03]} 64. Kg3 {[%clk 0:00:08]}  Ke3 {[%clk 0:00:03]} 65. Bc6 {[%clk 0:00:08]}  Ne5 {[%clk 0:00:04]} 66. Bb5 {[%clk 0:00:09]}  Nf7 {[%clk 0:00:02]} 67. h4 {[%clk 0:00:09]}  Nd6 {[%clk 0:00:03]} 68. Bc6 {[%clk 0:00:08]}  Nc4 {[%clk 0:00:04]} 69. g5 {[%clk 0:00:08]}  hxg5 {[%clk 0:00:05]} 70. hxg5 {[%clk 0:00:09]}  Kd4 {[%clk 0:00:05]} 71. g6 {[%clk 0:00:09]}  Nd6 {[%clk 0:00:05]} 72. Kf4 {[%clk 0:00:09]}  Nc8 {[%clk 0:00:05]} 73. g7 {[%clk 0:00:09]}  Ne7 {[%clk 0:00:05]} 74. Ba4 {[%clk 0:00:07]}  Kc4 {[%clk 0:00:02]} 75. Kg5 {[%clk 0:00:07]}  Kc5 {[%clk 0:00:01]} 76. Bb3 {[%clk 0:00:05]}  Kd4 {[%clk 0:00:01]} 77. Kf6 {[%clk 0:00:05]}  Nc8 {[%clk 0:00:01]} 78. g8=Q {[%clk 0:00:06]}  Nd6 {[%clk 0:00:02]} 79. Qd5+ {[%clk 0:00:06]}  Kc3 {[%clk 0:00:02]} 80. Qxd6 {[%clk 0:00:07]}  Kb2 {[%clk 0:00:03]} 81. Qc5 {[%clk 0:00:07]}  a4 {[%clk 0:00:04]} 82. Bxa4 {[%clk 0:00:07]}  Ka2 {[%clk 0:00:04]} 83. Qb4 {[%clk 0:00:07]}  Ka1 {[%clk 0:00:04]} 84. Bd7 {[%clk 0:00:07]}  Ka2 {[%clk 0:00:05]} 85. a4 {[%clk 0:00:07]}  Ka1 {[%clk 0:00:06]} 86. a5 {[%clk 0:00:08]}  Ka2 {[%clk 0:00:07]} 87. a6 {[%clk 0:00:09]}  Ka1 {[%clk 0:00:08]} 88. a7 {[%clk 0:00:10]}  Ka2 {[%clk 0:00:08]} 89. a8=Q# {[%clk 0:00:11]} 1-0


[Site "https://www.chess.com"]

[Event "Titled Tuesday Blitz March 14 Early 2023"]
[White "Xu, Xiangyu"]
[Black "Bews, Steven"]
[WhiteFideId "8608288"]
[BlackFideId "2400529"]
[WhiteElo "2477"]
[BlackElo "2631"]
[Result "1-0"]
[Round "09"]
[TimeControl "180+2"]
[Date "2023.03.14"]
[WhiteClock "0:00:23"]
[BlackClock "0:00:13"]

1. d4 {[%clk 0:03:00]}  Nf6 {[%clk 0:02:59]} 2. Bg5 {[%clk 0:03:01]}  d5 {[%clk 0:02:55]} 3. Nd2 {[%clk 0:03:01]}  e6 {[%clk 0:02:52]} 4. e4 {[%clk 0:02:59]}  dxe4 {[%clk 0:02:49]} 5. Nxe4 {[%clk 0:02:59]}  Be7 {[%clk 0:02:49]} 6. Bxf6 {[%clk 0:02:58]}  Bxf6 {[%clk 0:02:50]} 7. Nf3 {[%clk 0:02:57]}  Nd7 {[%clk 0:02:46]} 8. Bd3 {[%clk 0:02:56]}  c5 {[%clk 0:02:36]} 9. dxc5 {[%clk 0:02:32]}  Nxc5 {[%clk 0:02:14]} 10. Bb5+ {[%clk 0:02:24]}  Nd7 {[%clk 0:02:13]} 11. Nxf6+ {[%clk 0:02:06]}  Qxf6 {[%clk 0:01:59]} 12. Qd6 {[%clk 0:01:41]}  Qe7 {[%clk 0:01:57]} 13. Qf4 {[%clk 0:01:29]}  O-O {[%clk 0:01:54]} 14. O-O-O {[%clk 0:01:30]}  Nf6 {[%clk 0:01:48]} 15. Rhe1 {[%clk 0:01:25]}  a6 {[%clk 0:01:47]} 16. Bd3 {[%clk 0:01:22]}  b5 {[%clk 0:01:42]} 17. Ng5 {[%clk 0:01:12]}  Bb7 {[%clk 0:01:21]} 18. Re3 {[%clk 0:00:55]}  h6 {[%clk 0:01:15]} 19. Nf3 {[%clk 0:00:33]}  Nd5 {[%clk 0:01:10]} 20. Qe4 {[%clk 0:00:33]}  g6 {[%clk 0:01:07]} 21. Ree1 {[%clk 0:00:33]}  Nb4 {[%clk 0:01:06]} 22. Qf4 {[%clk 0:00:32]}  Kg7 {[%clk 0:00:47]} 23. Be4 {[%clk 0:00:31]}  Bxe4 {[%clk 0:00:24]} 24. Qxe4 {[%clk 0:00:32]}  Nxa2+ {[%clk 0:00:21]} 25. Kb1 {[%clk 0:00:31]}  Nb4 {[%clk 0:00:21]} 26. c3 {[%clk 0:00:31]}  a5 {[%clk 0:00:15]} 27. h4 {[%clk 0:00:23]}  Rfd8 {[%clk 0:00:11]} 28. h5 {[%clk 0:00:20]}  Nd5 {[%clk 0:00:08]} 29. Rxd5 {[%clk 0:00:19]}  b4 {[%clk 0:00:07]} 30. hxg6 {[%clk 0:00:18]}  bxc3 {[%clk 0:00:07]} 31. gxf7 {[%clk 0:00:17]}  c2+ {[%clk 0:00:07]} 32. Kc1 {[%clk 0:00:16]}  Rxd5 {[%clk 0:00:06]} 33. Qxd5 {[%clk 0:00:16]}  Qxf7 {[%clk 0:00:06]} 34. Qxa8 {[%clk 0:00:16]}  Qf4+ {[%clk 0:00:06]} 35. Re3 {[%clk 0:00:16]}  Qc4 {[%clk 0:00:06]} 36. Qa7+ {[%clk 0:00:16]}  Kf6 {[%clk 0:00:04]} 37. Qf7+ {[%clk 0:00:15]}  Kxf7 {[%clk 0:00:04]} 38. Ne5+ {[%clk 0:00:15]}  Ke7 {[%clk 0:00:05]} 39. Nxc4 {[%clk 0:00:16]}  Kd7 {[%clk 0:00:06]} 40. Kxc2 {[%clk 0:00:17]}  Kc6 {[%clk 0:00:06]} 41. Nxa5+ {[%clk 0:00:17]}  Kc5 {[%clk 0:00:07]} 42. Nb3+ {[%clk 0:00:18]}  Kd5 {[%clk 0:00:08]} 43. Rh3 {[%clk 0:00:19]}  e5 {[%clk 0:00:09]} 44. Rxh6 {[%clk 0:00:19]}  e4 {[%clk 0:00:10]} 45. Rh5+ {[%clk 0:00:20]}  Kc4 {[%clk 0:00:10]} 46. Nd2+ {[%clk 0:00:20]}  Kd4 {[%clk 0:00:10]} 47. Nf1 {[%clk 0:00:21]}  Kc4 {[%clk 0:00:10]} 48. Kd2 {[%clk 0:00:21]}  Kb3 {[%clk 0:00:10]} 49. Ke3 {[%clk 0:00:21]}  Kxb2 {[%clk 0:00:10]} 50. g4 {[%clk 0:00:21]}  Kc3 {[%clk 0:00:11]} 51. g5 {[%clk 0:00:22]}  Kc2 {[%clk 0:00:12]} 52. g6 {[%clk 0:00:22]}  Kd1 {[%clk 0:00:13]} 53. g7 {[%clk 0:00:22]}  Ke1 {[%clk 0:00:13]} 54. g8=Q {[%clk 0:00:22]}  Kd1 {[%clk 0:00:13]} 55. Qc4 {[%clk 0:00:23]}  Ke1 {[%clk 0:00:13]} 56. Qc1# {[%clk 0:00:23]} 1-0


[Site "https://www.chess.com"]